[Event "4NCL Div 2 2024-25"]
[Site "England"]
[Date "2025.02.15"]
[Round "5.1"]
[White "Korshunov, Sergey And."]
[Black "Bowcott-Terry, Finlay"]
[Result "1-0"]
[Annotator "ChessBase"]
[ECO "B33"]
[WhiteElo "2330"]
[BlackElo "2168"]
[PlyCount "83"]
[EventDate "2024.11.23"]
[EventType "team-tourn"]
[EventCountry "ENG"]
[SourceTitle "playchess.com"]
[Source "ChessBase"]
[SourceQuality "1"]
[TimeControl "40/6000+30:3000+30"]

1. e4 {[%emt 0:10:02]} c5 {[%emt 0:10:07]} 2. Nf3 {[%emt 0:00:05]} Nc6 {[%emt 0:00:05]} 3. d4 {[%emt 0:00:16]} cxd4 {[%emt 0:00:05]} 4. Nxd4 {[%emt 0:00:03]} Nf6 {[%emt 0:00:09]} 5. Nc3 {[%emt 0:00:04]} e5 {[%emt 0:00:04]} 6. Ndb5 {[%emt 0:00:03]} d6 {[%emt 0:00:08]} 7. Bg5 {[%emt 0:00:04]} a6 {[%emt 0:00:07]} 8. Na3 {[%emt 0:00:04]} b5 {[%emt 0:00:05]} 9. Bxf6 {[%emt 0:00:04]} gxf6 {[%emt 0:00:05]} 10. Nd5 {[%emt 0:00:03]} Bg7 {[%emt 0:00:07]} 11. c3 {[%emt 0:02:25]} f5 {[%emt 0:02:28]} 12. Bd3 {[%emt 0:00:29]} Ne7 {[%emt 0:00:05]} 13. Nxe7 {[%emt 0:04:17]} Qxe7 {[%emt 0:00:14]} 14. Nc2 {[%emt 0:00:18]} d5 {[%emt 0:03:47]} 15. exf5 {[%emt 0:08:25]} e4 {[%emt 0:07:25]} 16. Be2 {[%emt 0:00:28]} Bb7 {[%emt 0:02:49]} 17. Qd2 {[%emt 0:12:57]} O-O {[%emt 0:02:05]} 18. O-O {[%emt 0:00:48]} Rad8 {[%emt 0:01:20]} 19. Nd4 {[%emt 0:01:57]} Qe5 {[%emt 0:05:25]} 20. Rad1 {[%emt 0:07:40]} Kh8 {[%emt 0:00:09]} 21. Qe3 {[%emt 0:05:28]} Rg8 {[%emt 0:01:40]} 22. f4 {[%emt 0:00:59]} Qe7 {[%emt 0:03:04]} 23. a3 {[%emt 0:02:21]} Bxd4 {[%emt 0:07:49]} 24. Qxd4+ {[%emt 0:03:30]} f6 {[%emt 0:00:01]} 25. Kh1 {[%emt 0:03:08]} Rg7 {[%emt 0:01:47]} 26. Rg1 {[%emt 0:03:45]} Rdg8 {[%emt 0:03:55]} 27. g4 {[%emt 0:05:22]} h6 {[%emt 0:06:08]} 28. Rg3 {[%emt 0:00:26]} Qd6 {[%emt 0:00:53]} 29. Rf1 {[%emt 0:00:24]} Kh7 {[%emt 0:02:10]} 30. Rf2 {[%emt 0:06:53]} Bc8 {[%emt 0:02:13]} 31. Qe3 {[%emt 0:04:13]} Rd8 {[%emt 0:03:24]} 32. Rh3 {[%emt 0:03:32]} d4 {[%emt 0:05:30]} 33. Rxh6+ {[%emt 0:04:24]} Kg8 {[%emt 0:00:01]} 34. cxd4 {[%emt 0:00:05]} Qxd4 {[%emt 0:00:05]} 35. Qxd4 {[%emt 0:01:19]} Rxd4 {[%emt 0:00:02]} 36. Rh3 {[%emt 0:00:52]} Rc7 {[%emt 0:00:13]} 37. Kg1 {[%emt 0:07:29]} Rc1+ {[%emt 0:02:22]} 38. Rf1 {[%emt 0:00:27]} Rc2 {[%emt 0:00:17]} 39. Rc3 {[%emt 0:01:51]} Rxe2 {[%emt 0:00:08]} 40. Rxc8+ {[%emt 0:00:03]} Kf7 {[%emt 0:01:20]} 41. Rfc1 {[%emt 0:51:27]} Rd7 {[%emt 0:50:12]} 42. R8c2 {[%emt 0:03:23]} 1-0

[Event "4NCL Div 2 2024-25"]
[Site "England"]
[Date "2025.02.15"]
[Round "5.1"]
[White "Hobson, Kenneth"]
[Black "Webb, Richard M"]
[Result "1-0"]
[Annotator "TA"]
[ECO "B76"]
[WhiteElo "2152"]
[BlackElo "2172"]
[PlyCount "49"]
[EventDate "2024.11.23"]
[EventType "team-tourn"]
[EventCountry "ENG"]
[SourceTitle "playchess.com"]
[Source "ChessBase"]
[SourceQuality "1"]
[TimeControl "40/6000+30:3000+30"]

{[%evp 27,49,38,23,-58,-11,0,0,-56,0,0,-8,-20,0,-72,-64,-108,-20,-66,-17,-17,-20,-25,232,242]} 1. e4 {[%emt 0:10:03]} c5 {[%emt 0:10:08]} 2. Nf3 {[%emt 0:00:55]} d6 {[%emt 0:00:10]} 3. d4 {[%emt 0:02:30]} cxd4 {[%emt 0:00:14]} 4. Nxd4 {[%emt 0:00:06]} Nf6 {[%emt 0:00:12]} 5. Nc3 {[%emt 0:00:18]} g6 {[%emt 0:00:46]} 6. Be3 {[%emt 0:00:38]} Bg7 {[%emt 0:00:07]} 7. f3 {[%emt 0:00:22]} O-O {[%emt 0:00:16]} 8. Qd2 {[%emt 0:00:35]} Nc6 {[%emt 0:00:07]} 9. O-O-O {[%emt 0:00:41]} d5 {[%emt 0:00:54]} 10. exd5 {[%emt 0:01:02]} Nxd5 {[%emt 0:00:16]} 11. Nxc6 {[%emt 0:00:28]} bxc6 {[%emt 0:00:06]} 12. Bd4 {[%emt 0:00:12]} e5 {[%emt 0:06:02]} 13. Bc5 {[%emt 0:00:35]} Re8 {[%emt 0:00:15]} 14. Nxd5 {[%emt 0:07:18]} cxd5 {[%emt 0:00:43]} 15. Bb5 {[%emt 0:01:06] [#] B76: Sicilian Dragon: Yugoslav Attack, 9 g4 and 9 0-0-0.} (15. Qxd5 $11 Qxd5 16. Rxd5) 15... Be6 $1 {[%emt 0:07:47]} 16. Bxe8 $11 {[%emt 0:02:50]} (16. Kb1 Rc8) 16... Qxe8 {[%emt 0:00:08]} 17. Rhe1 {[%emt 0:08:41]} (17. Qa5 $11) 17... Rc8 {[%emt 0:20:51]} (17... Qa4 $15 18. Kb1 d4) 18. Qa5 $1 {[%emt 0:04:52][%cal Oc2c3]} (18. Bxa7 Qa4 19. Bf2 Bf5 $19 (19... Qxa2 $2 20. Qg5 $19)) (18. Bd6 Bf5 19. c3 (19. Qxd5 $2 Rxc2+ 20. Kb1 Rd2+ 21. Ka1 Rxd5 $19) 19... Qa4 $19) 18... Qc6 {[%emt 0:06:46]} 19. b4 {[%emt 0:00:16][%cal Od1d3]} Bf6 $146 {[%emt 0:16:43]} (19... d4 $5) ({Predecessor:} 19... d4 20. h4 h5 21. Rd3 Bf5 22. Ra3 Qd5 23. Qa6 Rc6 24. Qe2 a5 25. Rxa5 d3 {0-1 Sidenko,A (2210)-Llorente Alvarez,J (2098) LSS BI-2009-P-00017}) 20. c4 {[%emt 0:17:26]} (20. Rd3 $11) 20... d4 $1 $17 {[%emt 0:12:32]} 21. Qb5 {[%emt 0:01:47] [#]} Qc7 {[%emt 0:03:19]} ({Black should try} 21... Qa8 $1 $17 {[%cal Oa7a5] ...a5! would now be deadly.} 22. Kb2 a6) 22. f4 {[%emt 0:03:02]} (22. Qa6 $1 $11) 22... exf4 {[%emt 0:08:01]} (22... a5 $1 $15 {is more appropriate.} 23. a3 (23. Qxa5 $2 Qxa5 24. bxa5 Rxc5 $19) (23. fxe5 $2 Bg5+ 24. Kb1 Rb8 $17) 23... exf4) 23. Qa6 $1 $11 {[%emt 0:03:00][%cal Oe1e6]} Qd7 {[%emt 0:05:51][%mdl 1024] Black has compensation.} 24. Re4 {[%emt 0:03:43]} d3 $2 {[%emt 0:03:08][%mdl 8192] [#]} (24... h6 $11 {and Black stays safe.}) 25. Rxd3 $1 {[%emt 0:27:40] Weighted Error Value: White=0.33/Black=0.67  Loses game:     	---       	Black=1      Mistake:       	White=3     	Black=4      Inaccurate:     	White=1     	---        OK:         	White=3     	Black=2      Strong:       	White=2     	Black=1      Brilliant:      	White=1     	---} 1-0

[Event "4NCL Div 2 2024-25"]
[Site "England"]
[Date "2025.02.15"]
[Round "5.2"]
[White "Cooksey, Paul S"]
[Black "Khoury, Theo"]
[Result "1/2-1/2"]
[Annotator "ChessBase"]
[ECO "D37"]
[WhiteElo "2234"]
[BlackElo "2194"]
[PlyCount "33"]
[EventDate "2024.11.23"]
[EventType "team-tourn"]
[EventCountry "ENG"]
[SourceTitle "playchess.com"]
[Source "ChessBase"]
[SourceQuality "1"]
[TimeControl "40/6000+30:3000+30"]

1. d4 {[%emt 0:10:04]} d5 {[%emt 0:10:16]} 2. c4 {[%emt 0:00:14]} e6 {[%emt 0:00:05]} 3. Nf3 {[%emt 0:00:11]} Nf6 {[%emt 0:00:07]} 4. Nc3 {[%emt 0:00:23]} Be7 {[%emt 0:00:05]} 5. Bf4 {[%emt 0:00:38]} O-O {[%emt 0:00:17]} 6. e3 {[%emt 0:00:05]} b6 {[%emt 0:00:44]} 7. Bd3 {[%emt 0:01:58]} Bb7 {[%emt 0:00:12]} 8. O-O {[%emt 0:01:27]} dxc4 {[%emt 0:10:12]} 9. Bxc4 {[%emt 0:00:09]} c5 {[%emt 0:00:09]} 10. dxc5 {[%emt 0:00:28]} Bxc5 {[%emt 0:04:02]} 11. Qe2 {[%emt 0:00:20]} Qe7 {[%emt 0:04:33]} 12. a3 {[%emt 0:06:41]} Nc6 {[%emt 0:05:59]} 13. Bg5 {[%emt 0:12:43]} Bd6 {[%emt 0:17:09]} 14. Bxf6 {[%emt 0:19:03]} Qxf6 {[%emt 0:02:54]} 15. Ne4 {[%emt 0:00:37]} Qe7 {[%emt 0:00:07]} 16. Nxd6 {[%emt 0:00:17]} Qxd6 {[%emt 0:00:06]} 17. Rfd1 {[%emt 0:04:26]} 1/2-1/2

[Event "4NCL Div 2 2024-25"]
[Site "England"]
[Date "2025.02.15"]
[Round "5.2"]
[White "Shearsby, Jude"]
[Black "Taylor, Adam A"]
[Result "0-1"]
[Annotator "ChessBase"]
[ECO "B43"]
[WhiteElo "2192"]
[BlackElo "2258"]
[PlyCount "78"]
[EventDate "2024.11.23"]
[EventType "team-tourn"]
[EventCountry "ENG"]
[SourceTitle "playchess.com"]
[Source "ChessBase"]
[SourceQuality "1"]
[TimeControl "40/6000+30:3000+30"]

1. e4 {[%emt 0:10:14]} c5 {[%emt 0:10:05]} 2. Nc3 {[%emt 0:00:18]} a6 {[%emt 0:00:44]} 3. Nf3 {[%emt 0:00:23]} b5 {[%emt 0:00:27]} 4. d4 {[%emt 0:05:35]} cxd4 {[%emt 0:00:12]} 5. Nxd4 {[%emt 0:00:11]} Bb7 {[%emt 0:00:18]} 6. Bd3 {[%emt 0:05:53]} e6 {[%emt 0:02:26]} 7. O-O {[%emt 0:04:03]} Nc6 {[%emt 0:03:50]} 8. Nxc6 {[%emt 0:01:43]} Bxc6 {[%emt 0:00:24]} 9. Re1 {[%emt 0:04:20]} d6 {[%emt 0:13:33]} 10. a4 {[%emt 0:03:25]} bxa4 {[%emt 0:03:13]} 11. Nxa4 {[%emt 0:02:03]} Nf6 {[%emt 0:00:45]} 12. Nc3 {[%emt 0:08:03]} Qb6 {[%emt 0:16:31]} 13. Qe2 {[%emt 0:00:59]} Be7 {[%emt 0:01:12]} 14. Rxa6 {[%emt 0:00:26]} Rxa6 {[%emt 0:00:04]} 15. Bxa6 {[%emt 0:00:01]} O-O {[%emt 0:00:14]} 16. Bc4 {[%emt 0:03:18]} Rc8 {[%emt 0:05:34]} 17. Bb3 {[%emt 0:01:03]} Bb7 {[%emt 0:03:30]} 18. Bg5 {[%emt 0:12:50]} h6 {[%emt 0:10:56]} 19. Be3 {[%emt 0:08:54]} Qc7 {[%emt 0:05:44]} 20. Qd3 {[%emt 0:02:40]} Nd7 {[%emt 0:05:20]} 21. Bd4 {[%emt 0:02:32]} Nc5 {[%emt 0:02:50]} 22. Qg3 {[%emt 0:00:23]} Bf8 {[%emt 0:00:42]} 23. Bxc5 {[%emt 0:10:40]} Qxc5 {[%emt 0:00:22]} 24. Qe3 {[%emt 0:00:01]} Qa5 {[%emt 0:06:50]} 25. Rd1 {[%emt 0:00:01]} Be7 {[%emt 0:04:13]} 26. Qd2 {[%emt 0:09:15]} Bg5 {[%emt 0:03:35]} 27. Qe1 {[%emt 0:03:16]} Bf4 {[%emt 0:02:31]} 28. f3 {[%emt 0:06:02]} Qc5+ {[%emt 0:04:33]} 29. Kh1 {[%emt 0:00:01]} Qh5 {[%emt 0:00:07]} 30. h3 {[%emt 0:00:48]} Be5 {[%emt 0:00:17]} 31. Ne2 {[%emt 0:01:55]} Ra8 {[%emt 0:03:31]} 32. Bc4 {[%emt 0:02:14]} Ra4 {[%emt 0:01:17]} 33. Bd3 {[%emt 0:01:11]} d5 {[%emt 0:00:31]} 34. exd5 {[%emt 0:01:54]} Bxd5 {[%emt 0:00:21]} 35. Kg1 {[%emt 0:00:02]} Qg5 {[%emt 0:00:27]} 36. Nc3 {[%emt 0:00:37]} Bxf3 {[%emt 0:00:46]} 37. Rd2 {[%emt 0:00:36]} Bf4 {[%emt 0:00:33]} 38. h4 {[%emt 0:01:06]} Be3+ {[%emt 0:00:08]} 39. Kf1 {[%emt 0:00:31]} Rxh4 {[%emt 0:00:08]} 0-1

[Event "4NCL Div 2 2024-25"]
[Site "England"]
[Date "2025.02.15"]
[Round "5.3"]
[White "Wilks, Simon"]
[Black "Valdepenas Octavio, Javier"]
[Result "1/2-1/2"]
[Annotator "TA"]
[ECO "C95"]
[WhiteElo "2078"]
[BlackElo "2145"]
[PlyCount "116"]
[EventDate "2024.11.23"]
[EventType "team-tourn"]
[EventCountry "ENG"]
[SourceTitle "playchess.com"]
[Source "ChessBase"]
[SourceQuality "1"]
[TimeControl "40/6000+30:3000+30"]

{[%evp 28,116,42,28,23,22,19,12,0,0,7,0,0,5,10,6,0,0,0,0,0,-10,0,-9,-11,-11,0,0,-18,-31,16,24,12,0,0,-1,0,-45,0,0,17,0,32,32,33,36,35,18,77,67,113,128,91,0,0,0,0,0,0,0,0,0,0,0,0,0,0,0,0,0,0,0,0,0,0,0,0,0,0,0,0,0,0,0,0,0,0,0,0,0,0]} 1. e4 {[%emt 0:10:41]} e5 {[%emt 0:26:20]} 2. Nf3 {[%emt 0:00:13]} Nc6 {[%emt 0:00:28]} 3. Bb5 {[%emt 0:00:04][%cal Bf1b5,Bb5a4,Ba4b3][%mdl 32]} a6 {[%emt 0:00:30]} 4. Ba4 {[%emt 0:00:08]} Nf6 {[%emt 0:00:14]} 5. O-O {[%emt 0:01:03]} Be7 {[%emt 0:00:07]} 6. Re1 {[%emt 0:00:26]} b5 {[%emt 0:00:06]} 7. Bb3 {[%emt 0:00:03]} d6 {[%emt 0:00:12]} 8. c3 {[%emt 0:01:37]} O-O {[%emt 0:00:08]} 9. h3 {[%emt 0:00:14]} Nb8 {[%emt 0:00:05][%cal Bc6b8,Bb8d7,Bd7b6][%mdl 32]} 10. d4 {[%emt 0:01:31]} Nbd7 {[%emt 0:00:07]} 11. Nbd2 {[%emt 0:00:53]} Bb7 {[%emt 0:00:06]} 12. Bc2 {[%emt 0:00:39]} Re8 {[%emt 0:00:07]} 13. Nf1 {[%emt 0:00:56]} Bf8 {[%emt 0:00:11]} 14. Ng3 {[%emt 0:01:13]} g6 {[%emt 0:01:01]} 15. a4 {[%emt 0:02:25]} Nb6 {[%emt 0:00:06] C95: Closed Ruy Lopez: Breyer Variation with 10 d4.} 16. a5 {[%emt 0:12:17]} Nbd7 {[%emt 0:00:07]} 17. b3 {[%emt 0:01:22]} exd4 {[%emt 0:01:46]} 18. cxd4 {[%emt 0:02:56]} c5 {[%emt 0:00:07]} 19. d5 {[%emt 0:06:31]} Bg7 {[%emt 0:00:05][%cal Of6e4]} 20. Ra2 {[%emt 0:03:56]} Ne5 $146 {[%emt 0:02:12]} ({Predecessor:} 20... Rc8 21. Bf4 Qe7 22. Bb1 c4 23. Rae2 Ne5 24. Nd4 cxb3 25. Qxb3 Rc4 26. Nc2 Qc7 {½-½ Zarubitski,V (2416)-Degraeve,R (2322) EU-ch U16 28th 2018 (3)}) 21. Nxe5 {[%emt 0:08:16]} Rxe5 {[%emt 0:00:04]} 22. Bf4 {[%emt 0:05:22]} Re8 {[%emt 0:02:38]} 23. Bd3 {[%emt 0:05:30]} Rc8 {[%emt 0:06:14]} 24. Qc1 {[%emt 0:12:24]} Qc7 {[%emt 0:05:50]} 25. Bd2 {[%emt 0:04:39]} Nd7 {[%emt 0:03:51]} 26. Bc3 {[%emt 0:04:21]} Ne5 {[%emt 0:03:28]} 27. Bf1 {[%emt 0:01:30]} Qd8 {[%emt 0:16:42]} 28. f4 {[%emt 0:13:43]} Nd7 {[%emt 0:11:37]} (28... c4 $15 29. bxc4 (29. fxe5 cxb3 30. Rb2 b4 $17) 29... Nxc4 30. Bxg7 Kxg7) 29. Bxg7 $11 {[%emt 0:01:56]} Kxg7 {[%emt 0:00:08]} 30. Rf2 {[%emt 0:04:00]} Qh4 {[%emt 0:11:36]} 31. Nh1 {[%emt 0:02:30][%cal Bg3h1,Bh1f2,Bf2d3][%mdl 32]} Kg8 {[%emt 0:03:42] Successful Defense Black} 32. g3 {[%emt 0:00:50]} Qe7 {[%emt 0:00:36][%cal Ob7d5]} 33. Rfe2 {[%emt 0:00:42]} Qf6 {[%emt 0:04:57]} 34. Nf2 $36 {[%emt 0:00:22][%mdl 2048] White is pushing.} Qg7 {[%emt 0:02:19]} 35. Bg2 {[%emt 0:00:56]} Qd4 {[%emt 0:03:54]} 36. Kh2 {[%emt 0:01:17][%cal Oe4e5]} c4 {[%emt 0:00:43]} 37. Rd1 {[%emt 0:00:46]} Qc5 {[%emt 0:00:29] [#]} (37... cxb3 $2 38. Qxc8 Rxc8 39. Rxd4 $18) (37... Qg7 $11) 38. Rc2 $1 $16 {[%emt 0:00:37]} c3 {[%emt 0:02:07]} (38... Qb4 $14) 39. Nd3 {[%emt 0:00:14]} Qc7 {[%emt 0:00:12]} 40. b4 {[%emt 0:00:21]} (40. Qa1 $16) 40... Nf6 $11 {[%emt 0:03:50] The position is equal.} 41. Nf2 {[%emt 0:24:33]} Qc4 {[%emt 0:24:51]} 42. Rd3 {[%emt 0:11:09][%cal Rd3c3]} Qxb4 {[%emt 0:02:23]} (42... Nxe4 43. Bxe4 Qxb4 (43... Rxe4 $2 44. Rdxc3 Re2 45. Rxc4 $18) 44. Rcxc3 $18) 43. Rdxc3 {[%emt 0:01:41]} (43. Rcxc3 Qxa5 44. Qb2 Rxc3 45. Rxc3 h5 $15) 43... Rxc3 {[%emt 0:00:09]} 44. Rxc3 {[%emt 0:00:04] [#]} Qxa5 {[%emt 0:04:50]} 45. Rc7 {[%emt 0:03:15]} Qb6 {[%emt 0:00:10]} 46. Qc3 {[%emt 0:02:30]} b4 {[%emt 0:13:09]} (46... Qxf2 $2 47. Qxf6 (47. Rxb7 $2 {is the wrong capture.} Nxe4 48. Qf3 Qd4 $19) 47... Rf8 48. Rxb7 $18) 47. Rxb7 {[%emt 0:02:43]} Qxb7 {[%emt 0:00:08]} 48. Qxf6 {[%emt 0:00:09]} b3 {[%emt 0:02:58]} 49. Ng4 {[%emt 0:07:53] and Nh6+ would now be decisive} b2 {[%emt 0:01:48]} 50. Nh6+ {[%emt 0:01:33]} Kf8 {[%emt 0:00:02]} 51. Nf5 {[%emt 0:00:32] Some like it hot} gxf5 {[%emt 0:00:35][%mdl 4096] Endgame KQR-KQB} ({Weaker is} 51... b1=B 52. Qh8#) 52. e5 $1 {[%emt 0:00:04]} b1=Q {[%emt 0:05:35]} 53. Qh6+ $1 {[%emt 0:00:13]} Kg8 {[%emt 0:00:07][%cal Oe8e5] ( -> ...Rxe5!)} 54. Qg5+ {[%emt 0:00:09]} Kh8 {[%emt 0:00:31][%cal Of7f6] ( -> ...f6!)} 55. Qf6+ {[%emt 0:00:06]} Kg8 {[%emt 0:00:03]} 56. Qg5+ {[%emt 0:00:03]} Kh8 {[%emt 0:00:13]} 57. Qf6+ {[%emt 0:00:04]} Kg8 {[%emt 0:00:03] Hoping for ...Qe7.} 58. Qg5+ {[%emt 0:00:10]} Kh8 {[%emt 0:00:13] Weighted Error Value: White=0.05 (flawless) /Black=0.08 (flawless)   Mistake:       	White=1     	Black=3      Inaccurate:     	White=1     	Black=2      OK:         	White=18    	Black=13     Best:        	White=4     	Black=4      Strong:       	White=3     	---} 1/2-1/2

[Event "4NCL Div 2 2024-25"]
[Site "England"]
[Date "2025.02.15"]
[Round "5.3"]
[White "Pozimski, Szymon"]
[Black "Thompson, Ian D"]
[Result "1-0"]
[Annotator "TA"]
[ECO "D43"]
[WhiteElo "2003"]
[BlackElo "2010"]
[PlyCount "79"]
[EventDate "2024.11.23"]
[EventType "team-tourn"]
[EventCountry "ENG"]
[SourceTitle "playchess.com"]
[Source "ChessBase"]
[SourceQuality "1"]
[TimeControl "40/6000+30:3000+30"]

{[%evp 12,79,22,13,18,12,18,18,22,24,18,21,22,30,29,12,10,0,8,-18,-16,-29,0,-4,-6,-12,0,-27,-16,-27,-25,-41,0,-8,0,0,0,0,0,0,0,0,0,0,0,-27,0,0,71,64,65,63,183,164,174,157,156,146,337,127,325,202,29999,670,29999,457,639,614,626,603]} 1. c4 {[%emt 0:10:02]} e6 {[%emt 0:10:11]} 2. Nc3 {[%emt 0:00:02]} d5 {[%emt 0:00:19]} 3. d4 {[%emt 0:00:02]} c6 {[%emt 0:00:26]} 4. Qb3 {[%emt 0:00:01]} Nf6 {[%emt 0:04:42]} 5. Bg5 {[%emt 0:00:02]} Nbd7 {[%emt 0:04:40]} 6. Nf3 {[%emt 0:07:49]} Be7 {[%emt 0:17:56]} 7. e3 {[%emt 0:02:55]} h6 {[%emt 0:03:10] D43: Semi-Slav: 5 Bg5 h6.} 8. Bh4 {[%emt 0:01:28]} b6 {[%emt 0:04:58]} 9. Be2 {[%emt 0:14:07]} Bb7 {[%emt 0:01:05] The position is equal.} 10. O-O {[%emt 0:00:19]} O-O {[%emt 0:00:25]} 11. Rfd1 {[%emt 0:03:17]} Ne4 {[%emt 0:04:59] [#] ...Nxc3 is the strong threat.} 12. Bxe7 {[%emt 0:00:23]} Qxe7 {[%emt 0:00:06]} 13. Nxe4 $146 {[%emt 0:14:31]} ({Predecessor:} 13. Rac1 Nxc3 14. Qxc3 {½-½ Ippolito,D (2395)-Arun Prasad,S (2496) Arlington DC op 3rd 2015 (3)}) 13... dxe4 {[%emt 0:00:07]} 14. Nd2 {[%emt 0:00:26][%cal Bf3d2,Bd2f1,Bf1g3,Bg3e2,Be2c3][%mdl 32]} c5 {[%emt 0:02:02]} 15. dxc5 {[%emt 0:03:55]} Nxc5 {[%emt 0:01:12]} 16. Qc3 {[%emt 0:07:04]} Rfd8 {[%emt 0:08:45]} 17. Nf1 {[%emt 0:05:51]} a5 {[%emt 0:07:40]} 18. b3 {[%emt 0:04:17]} g6 {[%emt 0:06:50]} 19. Ng3 {[%emt 0:06:02]} h5 {[%emt 0:02:34]} 20. Bf1 {[%emt 0:01:28]} e5 {[%emt 0:01:50]} 21. Qc2 {[%emt 0:01:49]} f5 {[%emt 0:07:30]} 22. Ne2 {[%emt 0:01:18]} Nd3 {[%emt 0:03:19]} 23. Nc3 {[%emt 0:06:14]} Nb4 {[%emt 0:00:26]} 24. Qe2 {[%emt 0:03:38]} f4 {[%emt 0:04:23]} 25. exf4 {[%emt 0:05:27]} exf4 {[%emt 0:00:29]} 26. Rxd8+ {[%emt 0:00:37]} Rxd8 {[%emt 0:00:15]} 27. Rd1 {[%emt 0:00:55]} Rxd1 {[%emt 0:03:45]} 28. Nxd1 {[%emt 0:00:44]} (28. Qxd1 $5 e3 29. Qe2 $11 (29. Qd4 Nxa2 30. Nxa2 e2 $14)) 28... Qe5 {[%emt 0:03:19]} 29. Qd2 {[%emt 0:01:01]} Kh7 {[%emt 0:01:42]} (29... Kf7 $11) 30. Qd7+ $16 {[%emt 0:01:11]} Qg7 {[%emt 0:00:07]} 31. Qd6 {[%emt 0:01:16][%csl LRb6,LRf4]} Nc6 {[%emt 0:05:13]} (31... Nxa2 $14 32. Qxf4 Bc6) 32. Qxf4 $18 {[%emt 0:00:13]} Qe7 {[%emt 0:00:27]} 33. Qd2 {[%emt 0:01:20]} Ne5 {[%emt 0:00:23]} 34. Ne3 {[%emt 0:00:12]} Qg5 $2 {[%emt 0:00:45] [#]} (34... Qd7 $16 35. Nd5 Bxd5) 35. Kh1 $2 {[%emt 0:00:52]} (35. Qd6 $1 $18 {[%cal Rd6c7] and the rest is easy.} Bc6 36. Qc7+ Kg8 37. Qb8+ (37. Qxb6 Kg7 $18) 37... Kf7 38. Qxb6) 35... Kh6 $2 {[%emt 0:00:50]} (35... Nd3 $16 {keeps fighting.} 36. Kg1 (36. Bxd3 exd3 37. Qxd3 Bxg2+ 38. Nxg2 Qc1+ $16) 36... Qe5) 36. Qd4 {[%emt 0:02:03]} Ng4 $2 {[%emt 0:01:02]} (36... Qf6 $18 37. Qd2 Kg7) 37. Nxg4+ {[%emt 0:00:08]} (37. Qh8# $142) 37... hxg4 {[%emt 0:00:25]} 38. Qxb6 {[%emt 0:01:57]} (38. Qh8# $142) 38... Qc1 {[%emt 0:00:15][%cal Rc1f1]} 39. Qe3+ {[%emt 0:00:05]} Qxe3 {[%emt 0:00:07]} 40. fxe3 {[%emt 0:00:02] Weighted Error Value: White=0.44/Black=0.75  Loses game:     	---       	Black=2      Missed win:     	White=1     	---        Mistake:       	White=1     	Black=3      Inaccurate:     	White=4     	Black=4      OK:         	White=14    	Black=5      Best:        	White=2     	Black=2} 1-0